bitfinex-derivatives/quotes_SOLF0:USTF0_20241101
["timestamp","ask_amount","ask_price","bid_price","bid_amount"]
[1730445803462,3.0175,165.83,165.79,3.018]
[1730445803878,8.34883285,165.84,165.73,8.34883285]
[1730445803879,8.34883285,165.8,165.73,8.34883285]
[1730445804060,3.1,165.84,165.72,1.2688]
[1730445804061,3.0189,165.75,165.72,8.34883285]
[1730445804660,8.34883285,165.77,165.71,3.1]
[1730445804869,8.34883285,165.75,165.69,8.34883285]
[1730445805066,3.1,165.79,165.69,8.34883285]
[1730445805067,8.34883285,165.74,165.69,8.34883285]
[1730445805580,3.0193,165.73,165.69,8.34883285]
[1730445806670,2.6154,165.78,165.66,4.488]
[1730445806671,3.0199,165.7,165.66,4.488]
[1730445806859,13.05008122,165.76,165.66,4.488]
[1730445807975,13.05008122,165.76,165.67,3.0202]
[1730445808277,13.05008122,165.74,165.65,3.1]
[1730445808875,13.05008122,165.74,165.66,3.0203]
[1730445809264,13.05008122,165.74,165.65,3.1]
[1730445809470,13.05008122,165.72,165.63,6.121]
[1730445809661,13.05008122,165.72,165.63,3.1]
[1730445810173,3.0196,165.71,165.66,3.0204]
[1730445811566,3.0196,165.71,165.67,3.0201]
[1730445814074,16.15008122,165.74,165.63,19.13338613]
[1730445814075,13.05008122,165.74,165.63,19.13338613]
[1730445814268,3.0192,165.73,165.69,3.0198]
[1730445815367,3.0192,165.73,165.68,3.0201]
[1730445815566,3.0194,165.72,165.68,3.0201]
[1730445818366,13.05008122,165.76,165.66,1.284]
[1730445818567,6.0346,165.84,165.66,1.284]
[1730445818568,3.0189,165.75,165.71,3.0194]
[1730445818875,13.05008122,165.78,165.69,3.04]
[1730445819082,13.05008122,165.74,165.69,3.04]
[1730445819265,13.05008122,165.74,165.66,4.324]
[1730445819671,3.0198,165.7,165.66,4.324]
[1730445819871,13.05008122,165.74,165.66,4.324]
[1730445820068,13.05008122,165.74,165.66,3.04]
[1730445820773,3.0198,165.7,165.66,3.04]
[1730445821485,3.0194,165.72,165.68,3.02]
[1730445821675,14.35008122,165.76,165.66,3.04]
[1730445821875,14.35008122,165.76,165.66,4.383]
[1730445822185,3.0194,165.72,165.66,4.383]
[1730445823286,3.0194,165.72,165.68,3.02]
[1730445829485,14.35008122,165.76,165.68,3.02]
[1730445829683,3.0192,165.73,165.69,3.0198]
[1730445830483,3.0192,165.73,165.69,11.36999127]
[1730445831088,8.35019127,165.76,165.69,8.35019127]
[1730445831384,8.35019127,165.78,165.73,8.35019127]
[1730445831790,3.0186,165.76,165.71,14.40959127]
[1730445831980,3.0186,165.76,165.71,11.39019127]
[1730445832887,8.35019127,165.78,165.72,8.35019127]
[1730445833095,3.0184,165.77,165.73,3.019]
[1730445834984,3.0187,165.76,165.72,3.0193]
[1730445835790,13.05693535,165.8,165.71,3.04]
[1730445836095,13.05693535,165.8,165.73,3.019]
[1730445837395,3.0185,165.77,165.73,3.019]
[1730445839894,3.0183,165.78,165.72,16.04055196]
[1730445840096,3.0183,165.78,165.72,17.29605196]
[1730445840487,3.0183,165.78,165.74,3.0189]
[1730445842998,2.6076,165.82,165.72,17.29605196]
[1730445843203,3.0181,165.79,165.75,3.0187]
[1730445844189,3.0185,165.77,165.73,3.0191]
[1730445844393,3.0185,165.77,165.72,17.29605196]
[1730445844600,13.05693535,165.81,165.72,17.29605196]
[1730445844796,3.0183,165.78,165.74,3.0189]
[1730445844996,3.0183,165.78,165.72,17.29605196]
[1730445845387,13.05693535,165.81,165.72,4.23911661]
[1730445845794,13.05693535,165.81,165.72,1.2555]
[1730445845999,13.05693535,165.81,165.71,3.04]
[1730445846000,3.019,165.75,165.71,3.04]
[1730445846204,13.05693535,165.79,165.68,1.363]
[1730445846395,2.6076,165.82,165.69,3.04]
[1730445846396,13.05693535,165.76,165.69,3.04]
[1730445846885,13.05693535,165.76,165.67,1.3071]
[1730445847085,13.05693535,165.74,165.67,4.3471]
[1730445847301,13.05693535,165.74,165.67,3.04]
[1730445847612,13.05693535,165.74,165.66,3.0203]
[1730445848101,13.05693535,165.74,165.65,3.04]
[1730445848801,3.02,165.69,165.65,3.04]
[1730445849102,3.02,165.69,165.65,6.0606]
[1730445849596,13.05693535,165.74,165.65,3.04]
[1730445849804,3.0194,165.72,165.68,3.02]
[1730445851201,3.0192,165.73,165.69,3.0198]
[1730445851607,1.3285,165.75,165.65,16.09693535]
[1730445851798,14.41613535,165.81,165.68,13.05693535]
[1730445851994,3.04,165.8,165.69,1.2748]
[1730445852203,3.04,165.8,165.7,3.04]
[1730445852509,3.04,165.8,165.72,3.0193]
[1730445853298,3.0187,165.76,165.72,3.0193]
[1730445856711,13.05693535,165.78,165.72,3.0193]
[1730445856908,3.0188,165.75,165.72,3.0193]
[1730445858208,13.05693535,165.78,165.7,3.04]
[1730445858404,8.35235041,165.72,165.69,1.2748]
[1730445858721,8.35235041,165.72,165.68,3.0199]
[1730445859517,11.37185041,165.72,165.68,3.0199]
[1730445860312,11.37185041,165.72,165.68,11.37225041]
[1730445860810,8.35235041,165.76,165.71,8.35235041]
[1730445861009,8.35235041,165.76,165.71,11.37175041]
[1730445861010,3.019,165.75,165.71,11.37175041]
[1730445861402,3.019,165.74,165.71,11.37175041]
[1730445862411,3.019,165.74,165.67,3.04]
[1730445862412,16.09765985,165.8,165.72,3.0193]
[1730445863214,3.0188,165.76,165.72,3.0193]
[1730445863402,3.0188,165.76,165.69,13.05765985]
[1730445863403,16.09765985,165.8,165.69,13.05765985]
[1730445863604,3.0189,165.75,165.71,3.0195]
[1730445864513,3.019,165.74,165.7,3.0197]
[1730445864703,13.05765985,165.75,165.67,13.05765985]
[1730445864911,3.0197,165.71,165.67,3.04]
[1730445866310,3.0197,165.71,165.68,3.0201]
[1730445866516,3.0194,165.72,165.68,3.0201]
[1730445873222,3.0197,165.71,165.67,3.0201]
[1730445873524,14.44315985,165.75,165.66,3.04]
[1730445873912,14.44315985,165.75,165.67,3.0201]
[1730445874923,3.0196,165.71,165.67,3.0201]
[1730445881222,3.0194,165.72,165.68,3.0199]
[1730445881428,1.3855,165.75,165.66,3.04]
[1730445881824,13.05765985,165.76,165.66,3.04]
[1730445882429,3.0191,165.74,165.7,3.0196]
[1730445884428,11.36932145,165.74,165.7,3.0196]
[1730445885027,8.35022145,165.74,165.69,8.35022145]
[1730445885233,8.35022145,165.74,165.71,3.0194]
[1730445887241,8.35022145,165.76,165.7,8.35022145]
[1730445888144,11.36902145,165.76,165.72,3.0193]
[1730445888635,11.36902145,165.75,165.72,3.0193]
[1730445888840,8.35022145,165.75,165.7,8.35022145]
[1730445889039,8.35022145,165.73,165.7,3.0196]
[1730445889544,11.36942145,165.73,165.7,3.0196]
[1730445890134,8.35022145,165.73,165.7,3.0196]
[1730445890327,3.019,165.74,165.7,3.0196]
[1730445894039,8.35022145,165.73,165.7,3.0196]
[1730445898247,3.0188,165.76,165.72,3.0193]
[1730445899236,3.0188,165.75,165.72,3.0193]
[1730445900539,3.0188,165.75,165.69,3.04]
[1730445900540,8.35022145,165.74,165.69,11.39022145]
[1730445901442,3.0192,165.73,165.69,14.41002145]
[1730445901650,3.0192,165.73,165.69,11.39022145]
[1730445902553,11.36922145,165.74,165.7,3.0197]
[1730445904351,8.35022145,165.77,165.7,8.35022145]
[1730445905145,3.0189,165.75,165.72,3.0193]
[1730445905355,8.35022145,165.77,165.72,3.0193]
[1730445905544,8.35022145,165.78,165.72,8.35022145]
[1730445905950,8.35022145,165.78,165.73,8.35022145]
[1730445906250,3.0181,165.79,165.75,3.0187]
[1730445906959,8.35022145,165.8,165.74,3.04]
[1730445907149,3.0183,165.78,165.74,6.0589]
[1730445907340,8.35022145,165.79,165.74,6.0589]
[1730445908340,3.0183,165.78,165.74,6.0589]
[1730445908741,3.0183,165.78,165.74,3.04]
[1730445908954,3.0183,165.78,165.75,3.0188]
[1730445909356,8.35022145,165.8,165.75,8.35022145]
[1730445909544,8.35022145,165.82,165.76,8.35022145]
[1730445910249,8.35022145,165.84,165.78,8.35022145]
[1730445910455,8.35022145,165.84,165.79,8.35022145]
[1730445910852,8.35022145,165.84,165.79,11.39022145]
[1730445911246,11.36742145,165.84,165.8,3.0178]
[1730445911944,3.0172,165.84,165.79,14.40822145]
[1730445912448,3.0172,165.84,165.8,11.36802145]
[1730445915363,11.36672145,165.88,165.84,3.0172]
[1730445915657,11.36672145,165.88,165.82,8.35022145]
[1730445915658,8.35022145,165.88,165.82,8.35022145]
[1730445915956,11.36682145,165.88,165.83,3.0172]
[1730445916258,11.36682145,165.88,165.82,11.35099314]
[1730445916462,3.0166,165.88,165.84,8.35022145]
[1730445916958,3.0166,165.88,165.84,11.39022145]
[1730445917151,8.35022145,165.89,165.84,11.39022145]
[1730445917346,11.36652145,165.89,165.85,3.017]
[1730445917963,3.0161,165.9,165.85,11.36722145]
[1730445918164,9.68402145,165.93,165.88,3.0163]
[1730445918356,9.68402145,165.93,165.87,8.35022145]
[1730445918357,8.35022145,165.91,165.87,8.35022145]
[1730445918558,8.35022145,165.91,165.85,8.35022145]
[1730445918760,11.36612145,165.91,165.87,3.0166]
[1730445918960,8.35022145,165.91,165.87,8.35022145]
[1730445919256,8.35022145,165.91,165.84,3.04]
[1730445919257,11.36572145,165.94,165.89,11.36642145]
[1730445919566,8.35022145,165.95,165.9,8.35022145]
[1730445920462,8.35022145,165.97,165.91,11.36602145]
[1730445920653,8.35022145,165.97,165.91,8.35022145]
[1730445920854,8.35022145,165.97,165.89,3.04]
[1730445920855,8.35022145,165.98,165.92,8.35022145]
[1730445921053,3.0146,165.99,165.95,8.35022145]
[1730445921255,43.48,166.12,165.91,3.09098272]
[1730445921256,8.35022145,166.03,165.97,8.35022145]
[1730445921665,3.0142,166.01,165.97,8.35022145]
[1730445922068,8.35022145,166.03,165.97,8.35022145]
[1730445922262,3.0143,166.0,165.97,8.35022145]
[1730445922461,8.35022145,166.03,165.97,8.35022145]
[1730445923170,3.0142,166.01,165.98,8.35022145]
[1730445924158,11.36442145,166.01,165.96,11.36522145]
[1730445924657,3.0142,166.01,165.96,3.015]
[1730445928461,13.03343754,166.04,165.94,16.04863754]
[1730445928462,3.0145,165.99,165.94,16.04863754]
[1730445928662,13.03343754,166.04,165.94,13.03343754]
[1730445929169,3.0143,166.01,165.96,3.0149]
[1730445929357,3.0143,166.01,165.94,13.03343754]
[1730445930359,3.0143,166.01,165.93,3.04]
[1730445930360,3.0143,166.01,165.96,16.04843754]
[1730445930773,3.0143,166.01,165.96,13.03343754]
[1730445931163,3.0143,166.0,165.96,13.03343754]
[1730445931365,13.03343754,166.04,165.94,13.03343754]
[1730445931764,3.0145,165.99,165.94,16.04863754]
[1730445931971,13.03343754,166.02,165.91,16.12442026]
[1730445932285,13.03343754,166.02,165.92,3.04]
[1730445932770,13.03343754,166.02,165.92,6.11852618]
[1730445933275,3.0148,165.98,165.93,3.0154]
[1730445933478,13.03343754,166.02,165.93,3.0154]
[1730445934173,3.0144,166.0,165.93,3.0154]
[1730445934374,13.03343754,166.02,165.93,3.0154]
[1730445935072,3.0147,165.98,165.93,3.0154]
[1730445935277,3.0147,165.98,165.92,6.11852618]
[1730445935477,3.0147,165.98,165.94,3.0152]
[1730445940681,3.0147,165.98,165.94,3.04]
[1730445944485,3.0147,165.98,165.94,11.38389192]
[1730445944682,3.0147,165.98,165.94,14.39919192]
[1730445946182,3.0147,165.98,165.95,8.34389192]
[1730445946585,1.2626,166.03,165.96,8.34389192]
[1730445946586,3.0144,166.0,165.96,8.34389192]
[1730445947179,3.0144,166.0,165.96,11.35879192]
[1730445947686,3.0144,166.0,165.98,8.34389192]
[1730445947877,11.35789192,166.02,165.98,8.34389192]
[1730445948577,3.0141,166.01,165.98,8.34389192]
[1730445950086,3.0139,166.02,165.98,11.35839192]
[1730445950782,3.0137,166.04,165.99,8.34389192]
[1730445951188,3.0137,166.04,166.0,11.35809192]
[1730445951393,3.0134,166.05,166.0,8.34389192]
[1730445951782,3.0134,166.05,166.02,8.34389192]
[1730445953882,3.0134,166.05,166.0,11.38389192]
[1730445953883,3.0138,166.03,166.0,11.38389192]
[1730445954194,8.34389192,166.04,165.98,3.04]
[1730445954493,3.0143,166.0,165.97,8.34389192]
[1730445954680,8.34389192,166.02,165.96,3.04]
[1730445955077,8.34389192,166.01,165.96,3.04]
[1730445955274,3.04,166.05,165.94,8.34389192]
[1730445955275,8.34389192,165.99,165.94,8.34389192]
[1730445955693,3.015,165.96,165.94,8.34389192]
[1730445955880,3.015,165.96,165.93,3.04]
[1730445955881,8.34389192,165.98,165.93,3.04]
[1730445956275,3.0149,165.97,165.93,3.04]
[1730445956475,8.34389192,165.98,165.93,3.04]
[1730445957093,3.0151,165.96,165.93,3.04]
[1730445957993,8.34389192,165.98,165.93,3.04]
[1730445958790,3.0152,165.96,165.93,3.04]
[1730445959388,3.0148,165.97,165.93,6.0555]
[1730445960995,3.0148,165.97,165.93,3.0155]
[1730445964397,8.34389192,165.98,165.92,14.39949192]
[1730445964589,8.34389192,165.98,165.92,11.38389192]
[1730445964906,8.34389192,165.98,165.92,3.04]
[1730445965202,3.0151,165.96,165.92,6.0557]
[1730445965492,8.34389192,165.98,165.92,6.0557]
[1730445965680,3.0152,165.95,165.92,3.04]
[1730445966495,8.34389192,165.94,165.89,8.34389192]
[1730445967592,3.0156,165.93,165.89,11.35999192]
[1730445968396,8.34389192,165.94,165.88,11.38389192]
[1730445968599,8.34389192,165.94,165.89,8.34389192]
[1730445969500,3.0156,165.93,165.89,11.36009192]
[1730445969704,8.34389192,165.96,165.89,8.34389192]
[1730445969901,3.0154,165.94,165.91,3.0159]
[1730445970200,8.34389192,165.97,165.92,8.34389192]
[1730445970699,3.0152,165.96,165.92,11.35949192]
[1730445971001,8.34389192,165.97,165.92,8.34389192]
[1730445971295,3.0152,165.95,165.91,11.35969192]
[1730445972599,3.0154,165.94,165.9,5.732]
[1730445972787,8.34389192,165.95,165.9,2.7159]
[1730445973292,11.35919192,165.95,165.91,3.0159]
[1730445973493,3.0153,165.95,165.91,3.0159]
[1730445973806,3.0153,165.95,165.92,8.34389192]
[1730445974305,3.0151,165.96,165.92,11.35949192]
[1730445975794,8.34389192,165.98,165.92,8.34389192]
[1730445975991,3.0152,165.95,165.92,8.34389192]
[1730445976201,3.0152,165.95,165.91,11.35979192]
[1730445977801,8.34389192,165.97,165.91,8.34389192]
[1730445978003,11.35899192,165.96,165.92,3.0157]
[1730445978510,3.0152,165.95,165.92,3.0157]
[1730445979004,8.34389192,165.99,165.93,8.34389192]
[1730445979200,8.34389192,165.99,165.9,2.7159]
[1730445979201,8.34389192,165.96,165.9,8.34389192]
[1730445979398,8.34389192,165.94,165.89,11.38389192]
[1730445979607,3.0156,165.93,165.89,14.40009192]
[1730445981093,3.0156,165.93,165.89,11.36009192]
[1730445981405,3.0156,165.93,165.89,14.40009192]
[1730445981711,11.35929192,165.94,165.9,3.0161]
[1730445982006,8.34389192,165.98,165.92,8.34389192]
[1730445982399,3.0151,165.96,165.92,11.35949192]
[1730445983096,8.34389192,165.95,165.89,11.38389192]
[1730445983299,11.35989192,165.91,165.89,3.04]
[1730445983503,11.35989192,165.91,165.86,14.40059192]
[1730445984202,11.35989192,165.91,165.87,3.0166]
[1730445985804,11.35989192,165.91,165.87,11.36049192]
[1730445986009,8.34389192,165.91,165.87,8.34389192]
[1730445986209,8.34389192,165.91,165.88,3.0163]
[1730445987700,3.0158,165.92,165.88,3.0163]
[1730445989813,8.34389192,165.93,165.87,11.38389192]
[1730445990006,3.0159,165.91,165.87,14.40049192]
[1730445990200,8.34389192,165.95,165.89,8.34389192]
[1730445990806,1.2599,165.96,165.9,8.34389192]
[1730445990807,8.34389192,165.96,165.9,8.34389192]
[1730445992007,8.34389192,165.97,165.92,8.34389192]
[1730445993217,3.0151,165.96,165.92,11.35949192]
[1730445993413,8.34389192,165.97,165.92,8.34389192]
[1730445993710,3.0149,165.97,165.92,8.34389192]
[1730445993913,3.0149,165.97,165.92,11.38389192]
[1730445994113,3.0149,165.97,165.93,3.0154]
[1730445994904,3.0147,165.98,165.95,11.35899192]
[1730445995111,8.34389192,166.0,165.95,8.34389192]
[1730445995414,3.0146,165.99,165.95,11.35899192]
[1730445996023,11.35829192,166.0,165.96,3.0149]
[1730445996817,3.0145,165.99,165.96,3.0149]
[1730445998913,11.35819192,166.0,165.96,3.0149]
[1730446000515,3.0143,166.0,165.96,11.35879192]
[1730446005424,8.34389192,166.05,165.99,8.34389192]
[1730446005625,8.34389192,166.06,165.99,8.34389192]
[1730446005823,8.34389192,166.06,165.97,3.04]
[1730446005824,9.69259192,166.09,166.03,8.34389192]
[1730446006026,12.70529192,166.09,166.04,3.0134]
[1730446006223,12.70529192,166.09,166.03,11.38389192]
[1730446006419,12.70529192,166.09,166.05,8.34389192]
[1730446006420,9.69259192,166.09,166.05,8.34389192]
[1730446006620,3.0125,166.1,166.06,3.013]
[1730446008429,3.0125,166.1,166.06,11.35689192]
[1730446009227,3.0123,166.11,166.07,3.013]
[1730446011126,3.0125,166.1,166.06,11.35699192]
[1730446011728,3.0125,166.1,166.06,8.34389192]
[1730446011929,3.0125,166.1,166.07,3.013]
[1730446012327,3.0125,166.1,166.06,8.34389192]
[1730446013222,3.0125,166.1,166.06,11.35689192]
[1730446016533,11.35659192,166.09,166.05,11.35719192]
[1730446017431,3.0127,166.09,166.05,11.35719192]
[1730446018723,3.0126,166.1,166.06,3.0131]
[1730446019928,3.0126,166.1,166.06,11.35699192]
[1730446020326,3.0126,166.1,166.04,1.3375]
[1730446020327,3.0128,166.08,166.05,8.34389192]
[1730446024139,3.0132,166.06,166.02,11.35769192]
[1730446024445,8.34389192,166.06,166.01,11.36389192]
[1730446024626,1.3366,166.13,166.0,8.34389192]
[1730446024627,8.34389192,166.05,166.0,8.34389192]
[1730446024831,3.0136,166.04,166.0,8.34389192]
[1730446025439,3.0136,166.04,166.0,11.35809192]
[1730446027349,3.0136,166.04,165.99,3.02]
[1730446027350,3.0138,166.03,165.99,14.37829192]
[1730446028847,3.0138,166.03,166.0,11.35819192]
[1730446029939,3.0136,166.04,166.0,11.35819192]
[1730446030539,8.34389192,166.05,166.0,11.35819192]
[1730446030943,8.34389192,166.05,165.99,3.02]
[1730446030944,3.0138,166.03,165.99,6.0343]
[1730446031648,3.0138,166.03,166.0,3.0143]
[1730446031946,3.0138,166.03,165.98,11.04689192]
[1730446031947,8.34389192,166.01,165.97,8.34389192]
[1730446032247,8.34389192,166.01,165.96,3.02]
[1730446032742,8.34389192,166.01,165.96,6.035]
[1730446032948,8.34389192,166.01,165.96,11.36389192]
[1730446033139,8.34389192,166.03,165.96,11.36389192]
[1730446033342,8.34389192,166.03,165.98,8.34389192]
[1730446034140,3.014,166.02,165.98,11.35849192]
[1730446034340,8.34389192,166.01,165.98,3.0146]
[1730446034549,8.34389192,166.0,165.96,3.02]
[1730446034945,8.34389192,166.0,165.94,8.34389192]
[1730446035134,8.34389192,165.97,165.93,3.02]
[1730446035444,8.34389192,165.96,165.9,11.36389192]
[1730446035651,11.35969192,165.92,165.88,3.0164]
[1730446035847,8.34389192,165.92,165.87,8.34389192]
[1730446036549,8.34389192,165.93,165.88,3.0163]
[1730446037343,3.02,165.96,165.87,11.36049192]
[1730446037344,8.34389192,165.92,165.87,11.36049192]
[1730446037747,11.35969192,165.92,165.87,8.34389192]
[1730446038146,8.34389192,165.92,165.88,3.0164]
[1730446039647,8.34389192,166.03,165.91,8.34389192]
[1730446039952,8.34389192,166.03,165.97,11.35859192]
[1730446039953,11.35779192,166.03,165.97,11.35859192]
[1730446040345,11.35779192,166.03,165.98,3.0145]
[1730446040648,8.34389192,166.04,165.97,8.34389192]
[1730446040950,8.34389192,166.04,165.99,8.34389192]
[1730446041653,11.35759192,166.04,165.99,11.35829192]
[1730446042543,3.0137,166.04,165.99,3.0144]
[1730446043647,3.0137,166.03,165.99,3.0144]
[1730446044872,18.67764124,166.07,165.96,13.02994124]
[1730446045152,18.67764124,166.07,165.95,4.2847]
[1730446045153,13.02994124,166.04,165.95,1.2647]
[1730446045359,13.02994124,166.02,165.91,13.02994124]
[1730446045653,3.0146,165.99,165.92,3.02]
[1730446046043,3.0146,165.99,165.94,3.0153]
[1730446046653,3.0146,165.99,165.95,3.0151]
[1730446049161,3.0142,166.01,165.96,3.0149]
[1730446051251,3.0139,166.02,165.98,3.0146]
[1730446052054,1.2908,166.06,165.99,3.0144]
[1730446052371,3.0138,166.03,165.99,3.0144]
[1730446057273,3.0141,166.01,165.97,6.0347]
[1730446057468,17.00764124,166.07,165.97,6.0347]
[1730446057774,13.02994124,166.04,165.94,3.02]
[1730446058068,3.0146,165.99,165.95,3.015]
[1730446058662,3.0146,165.99,165.94,3.02]
[1730446058663,13.02994124,166.04,165.94,3.02]
[1730446058969,3.0143,166.0,165.96,3.0148]
[1730446059358,3.0143,166.0,165.94,3.02]
[1730446059559,3.014,166.02,165.96,13.02994124]
[1730446059766,17.00764124,166.07,165.96,13.02994124]
[1730446061368,3.0139,166.02,165.96,13.02994124]
[1730446061874,3.0139,166.02,165.98,3.0145]
[1730446062271,3.0141,166.01,165.98,3.0145]
[1730446062465,17.00764124,166.07,165.93,3.02]
[1730446062466,13.02994124,166.02,165.93,3.02]
[1730446062665,13.02994124,166.02,165.92,13.02994124]
[1730446062666,13.02994124,166.02,165.92,16.04994124]
[1730446063171,3.0148,165.98,165.94,3.0152]
[1730446064465,3.0148,165.98,165.94,11.35867433]
[1730446064968,3.0148,165.98,165.92,3.02]
[1730446064969,8.34347433,165.97,165.92,8.34347433]
[1730446065176,3.0152,165.95,165.91,4.2805]
[1730446065871,3.015,165.96,165.92,3.0157]
[1730446070373,3.015,165.96,165.92,11.35917433]
[1730446070870,3.015,165.96,165.92,3.0157]
[1730446071178,3.02,165.98,165.89,3.0161]
[1730446071179,3.0156,165.93,165.89,3.0161]
[1730446071581,3.0156,165.93,165.89,8.34347433]
[1730446072083,2.6072,165.97,165.85,2.6854]
[1730446072084,11.35937433,165.92,165.87,8.34347433]
[1730446072286,2.6072,165.97,165.89,8.34347433]
[1730446072287,8.34347433,165.94,165.89,8.34347433]
[1730446073274,3.0156,165.93,165.89,11.35977433]
[1730446073584,3.0156,165.93,165.89,3.0163]
[1730446074678,3.0156,165.93,165.89,11.35977433]
[1730446074879,3.0152,165.95,165.92,3.0157]
[1730446075379,11.36347433,165.98,165.93,8.34347433]
[1730446075785,3.0149,165.97,165.93,11.35887433]
[1730446075982,3.0149,165.97,165.93,8.34347433]
[1730446076380,3.0149,165.97,165.93,11.35897433]
[1730446076574,3.0149,165.97,165.93,3.0155]
[1730446077084,3.0151,165.96,165.92,3.0157]
[1730446077475,3.02,165.98,165.88,13.03930514]
[1730446077675,5.5847,165.98,165.91,3.0159]
[1730446078192,5.5847,165.98,165.88,13.03930514]
[1730446078491,3.016,165.91,165.87,3.0166]
[1730446078878,3.016,165.91,165.86,3.02]
[1730446079182,3.016,165.91,165.88,3.0164]
[1730446079574,3.0157,165.93,165.89,3.0162]
[1730446079772,13.03930514,165.96,165.85,17.41550514]
[1730446080675,3.0158,165.92,165.88,3.0163]
[1730446080876,13.03930514,165.96,165.85,17.41550514]
[1730446081081,3.02,165.97,165.88,13.03930514]
[1730446081484,5.5847,165.98,165.88,13.03930514]
[1730446081884,3.0152,165.96,165.91,3.0159]
[1730446082778,5.5847,165.98,165.91,3.0159]
[1730446083087,3.0152,165.95,165.91,3.0159]
[1730446088387,13.03930514,165.96,165.85,14.39550514]
[1730446088589,13.03930514,165.96,165.86,3.02]
[1730446088988,3.0157,165.93,165.89,3.0162]
[1730446089294,13.03930514,165.96,165.89,3.0162]
[1730446089493,3.0153,165.95,165.92,3.0157]
[1730446089694,2.5647,165.98,165.92,3.0157]
[1730446090192,3.0151,165.96,165.92,3.0157]
[1730446090394,1.2835,166.02,165.9,13.03930514]
[1730446090395,13.03930514,166.01,165.9,13.03930514]
[1730446090577,3.0148,165.98,165.91,1.3303]
[1730446090782,16.05930514,166.01,165.91,1.3303]
[1730446091194,1.3771,166.0,165.91,1.3303]
[1730446091992,3.0149,165.97,165.91,1.3303]
[1730446092999,13.03930514,165.96,165.88,3.02]
[1730446093189,13.03930514,165.98,165.88,3.02]
[1730446094603,13.03930514,165.96,165.87,3.02]
[1730446094897,3.0155,165.94,165.89,3.0161]
[1730446095099,16.05930514,165.96,165.89,3.0161]
[1730446095297,16.05930514,165.96,165.87,3.02]
[1730446095499,13.03930514,165.94,165.87,3.02]
[1730446095690,3.0161,165.91,165.87,3.0165]
[1730446096393,3.0161,165.9,165.84,3.02]
[1730446096589,1.3577,165.93,165.83,48.67097388]
[1730446096789,1.3277,165.92,165.9,1.0]
[1730446097197,1.3277,165.92,165.83,3.0173]
[1730446097198,13.03930514,165.91,165.83,3.0173]
[1730446097599,3.0165,165.88,165.84,3.0171]
[1730446097799,1.3277,165.92,165.82,4.4002]
[1730446099194,3.0162,165.9,165.86,3.0168]
[1730446100805,3.0162,165.9,165.87,3.0166]
[1730446101104,3.0162,165.9,165.83,13.03930514]
[1730446101802,14.36700514,165.92,165.82,4.4002]
[1730446102011,14.36700514,165.92,165.82,1.3802]
[1730446102201,3.02,165.91,165.82,1.3802]
[1730446102596,11.36324555,165.87,165.83,3.0173]
[1730446102999,3.02,165.91,165.8,8.34664555]
[1730446103000,8.34664555,165.86,165.8,8.34664555]
[1730446103309,3.0171,165.85,165.81,3.0177]
[1730446103700,3.0171,165.85,165.8,11.36664555]
[1730446103901,3.0171,165.85,165.82,3.0175]
[1730446104201,11.36354555,165.86,165.82,3.0175]
[1730446104404,13.04399834,165.89,165.8,3.02]
[1730446104603,16.06399834,165.91,165.8,16.06399834]
[1730446104807,3.0166,165.88,165.8,16.06399834]
[1730446105011,16.06399834,165.91,165.85,3.0168]
[1730446105012,3.02,165.91,165.85,3.0168]
[1730446105402,3.0164,165.89,165.85,3.0168]
[1730446106002,1.3277,165.92,165.87,3.0165]
[1730446107416,3.0159,165.91,165.87,3.0165]
[1730446108313,14.40169834,165.93,165.85,3.02]
[1730446108314,1.3577,165.93,165.85,3.02]
[1730446108910,4.3734,165.93,165.88,3.0163]
[1730446109414,3.0157,165.92,165.88,3.0163]
[1730446112824,3.0156,165.93,165.89,3.0162]
[1730446113220,3.0157,165.92,165.89,3.0162]
[1730446114623,3.0157,165.92,165.88,3.0164]
[1730446118413,3.02,165.96,165.86,13.04399834]
[1730446118614,3.0155,165.93,165.86,13.04399834]
[1730446119516,3.0157,165.92,165.89,3.0162]